fUST/lending_fUST_20250709
["ID","MTS","AMOUNT","RATE_DAILY","PERIOD"]
[370535243,1752059446122,-460.0,0.00020273,2]
[370535245,1752059446131,-460.0,0.00020273,2]
[370535247,1752059446140,-1657.86,0.00020273,2]
[370535249,1752059446150,-460.0,0.00020273,2]
[370535251,1752059446159,-450.34781317,0.00020273,2]
[370535252,1752059446168,-460.0,0.00020273,2]
[370535254,1752059446177,-460.0,0.00020273,2]
[370535256,1752059446186,-460.0,0.00020273,2]
[370535258,1752059446196,-460.0,0.00020273,2]
[370535260,1752059446205,-460.0,0.00020273,2]
[370535262,1752059446214,-847.03,0.00020273,2]
[370535264,1752059446224,-735.39,0.00020273,2]
[370535266,1752059446233,-198.42,0.00020273,2]
[370535268,1752059446242,-460.0,0.00020273,2]
[370535270,1752059446251,-296.56,0.00020273,2]
[370535272,1752059446260,-218.67,0.00020273,2]
[370535274,1752059446270,-460.0,0.00020273,2]
[370535276,1752059446279,-460.0,0.00020273,2]
[370535278,1752059446289,-151.0,0.00020273,2]
[370535280,1752059446299,-482.77,0.00020273,2]
[370535282,1752059446309,-537.15,0.00020273,2]
[370535284,1752059446318,-460.0,0.00020273,2]
[370535286,1752059446327,-769.06,0.00020273,2]
[370535288,1752059446336,-460.0,0.00020273,2]
[370535290,1752059446345,-546.9,0.00020273,2]
[370535292,1752059446354,-547.44,0.00020273,2]
[370535294,1752059446363,-460.0,0.00020273,2]
[370535296,1752059446373,-460.0,0.00020273,2]
[370535298,1752059446382,-1233.24,0.00020273,2]
[370535300,1752059446391,-460.0,0.00020273,2]
[370535302,1752059446400,-345.833326,0.00020282,2]
[370535304,1752059446410,-1203.98808523,0.00020314,3]
[370535305,1752059446419,-1000.0,0.00020322,2]
[370535307,1752059446428,-1000.0,0.00020322,2]
[370535309,1752059446437,-1000.0,0.00020322,2]
[370535311,1752059446446,-1000.0,0.00020322,2]
[370535313,1752059446455,-1000.0,0.00020322,2]
[370535315,1752059446466,-1000.0,0.00020322,2]
[370535317,1752059446476,-500.0,0.00020322,2]
[370535319,1752059446485,-1036.94146932,0.00020322,2]
[370535321,1752059446495,-1000.0,0.00020322,2]
[370535323,1752059446504,-1000.0,0.00020322,2]
[370535325,1752059446513,-500.0,0.00020322,2]
[370535327,1752059446522,-511.99044002,0.00020322,2]
[370535329,1752059446531,-345.833326,0.00020378,2]
[370535331,1752059446540,-1000.0,0.0002039,2]
[370535333,1752059446549,-500.0,0.000204,2]
[370535335,1752059446559,-160.0,0.00020431,2]
[370535337,1752059446567,-160.0,0.00020431,2]
[370535339,1752059446577,-837.99933892,0.00020431,2]
[370535341,1752059446586,-160.0,0.00020431,2]
[370535343,1752059446595,-12589.12013084,0.00020431,2]
[370535345,1752059446604,-848.55005627,0.00020431,2]
[370535347,1752059446613,-230.53906051,0.00020431,2]
[370535349,1752059446623,-160.0,0.00020431,2]
[370535351,1752059446634,-215.27775528,0.00020431,2]
[370535353,1752059446644,-214.14293035,0.00020431,2]
[370535355,1752059446653,-160.0,0.00020431,2]
[370535356,1752059446663,-160.0,0.00020431,2]
[370535358,1752059446672,-160.0,0.00020431,2]
[370535360,1752059446681,-536.98,0.00020435,2]
[370535362,1752059446691,-536.98,0.00020435,2]
[370535364,1752059446700,-536.98,0.00020435,2]
[370535366,1752059446709,-536.98,0.00020435,2]
[370535368,1752059446719,-537.13730618,0.00020435,2]
[370535370,1752059446727,-195.35678219,0.00020451,2]
[370535372,1752059446737,-300.0,0.00020451,2]
[370535374,1752059446746,-690.642,0.00020451,2]
[370535376,1752059446755,-300.0,0.00020451,2]
[370535378,1752059446764,-300.0,0.00020451,2]
[370535380,1752059446774,-300.0,0.00020451,2]
[370535382,1752059446783,-500.0,0.00020451,2]
[370535384,1752059446792,-300.0,0.00020451,2]
[370535386,1752059446801,-300.0,0.00020451,2]
[370535388,1752059446810,-300.0,0.00020451,2]
[370535390,1752059446819,-500.0,0.00020451,2]
[370535392,1752059446829,-300.0,0.00020451,2]
[370535393,1752059446838,-500.0,0.00020451,2]
[370535394,1752059446847,-3000.0,0.00020451,2]
[370535395,1752059446856,-500.0,0.00020451,2]
[370535396,1752059446865,-3000.0,0.00020451,2]
[370535397,1752059446874,-500.0,0.00020451,2]
[370535398,1752059446883,-300.0,0.00020451,2]
[370535399,1752059446892,-500.0,0.00020451,2]
[370535400,1752059447010,-3000.0,0.00020451,2]
[370535401,1752059447020,-300.0,0.00020451,2]
[370535402,1752059447031,-3000.0,0.00020451,2]
[370535403,1752059447040,-300.0,0.00020451,2]
[370535404,1752059447049,-500.0,0.00020451,2]
[370535405,1752059447059,-3000.0,0.00020451,2]
[370535406,1752059447068,-300.0,0.00020451,2]
[370535407,1752059447078,-500.0,0.00020451,2]
[370535408,1752059447087,-320.64489862,0.00020451,2]
[370535409,1752059447096,-500.0,0.00020451,2]
[370535410,1752059447105,-3000.0,0.00020451,2]
[370535411,1752059447114,-300.0,0.00020451,2]
[370535412,1752059447123,-500.0,0.00020451,2]
[370535413,1752059447132,-300.0,0.00020451,2]
[370535414,1752059447142,-3000.0,0.00020451,2]
[370535415,1752059447151,-500.0,0.00020451,2]
[370535416,1752059447160,-25000.0,0.00020451,2]
[370535417,1752059447170,-300.0,0.00020451,2]
[370535418,1752059447180,-3000.0,0.00020451,2]
[370535419,1752059447189,-500.0,0.00020451,2]
[370535420,1752059447199,-300.0,0.00020451,2]
[370535421,1752059447209,-3000.0,0.00020451,2]
[370535422,1752059447219,-500.0,0.00020451,2]
[370535423,1752059447227,-5271.91774509,0.00020451,2]
[370535424,1752059447238,-300.0,0.00020451,2]
[370535425,1752059447247,-500.0,0.00020451,2]
[370535426,1752059447256,-300.0,0.00020451,2]
[370535427,1752059447266,-3000.0,0.00020451,2]
[370535428,1752059447275,-3000.0,0.00020451,2]
[370535429,1752059447285,-300.0,0.00020451,2]
[370535430,1752059447295,-3000.0,0.00020451,2]
[370535431,1752059447305,-300.0,0.00020451,2]
[370535432,1752059447314,-3000.0,0.00020451,2]
[370535433,1752059447323,-207.4,0.00020451,2]
[370535434,1752059447333,-3000.0,0.00020451,2]
[370535435,1752059447342,-300.0,0.00020451,2]
[370535436,1752059447352,-300.0,0.00020451,2]
[370535437,1752059447361,-300.0,0.00020451,2]
[370535438,1752059447370,-300.0,0.00020451,2]
[370535439,1752059447380,-300.0,0.00020451,2]
[370535440,1752059447389,-300.0,0.00020451,2]
[370535441,1752059447398,-300.0,0.00020451,2]
[370535442,1752059447407,-300.0,0.00020451,2]
[370535443,1752059447416,-300.0,0.00020451,2]
[370535444,1752059447426,-151.146034,0.00020451,2]
[370535445,1752059447435,-151.0,0.00020451,2]
[370535446,1752059447444,-151.0,0.00020451,2]
[370535447,1752059447453,-151.0,0.00020451,2]
[370535448,1752059447462,-151.0,0.00020451,2]
[370535449,1752059447471,-151.0,0.00020451,2]
[370535450,1752059447481,-279.852506,0.00020451,2]
[370535451,1752059447490,-281.991641,0.00020451,2]
[370535452,1752059447499,-151.0,0.00020451,2]
[370535453,1752059447508,-151.0,0.00020451,2]
[370535454,1752059447518,-154.295007,0.00020451,2]
[370535455,1752059447527,-151.0,0.00020451,2]
[370535456,1752059447537,-151.0,0.00020451,2]
[370535457,1752059447547,-322.435502,0.00020451,2]
[370535458,1752059447558,-322.435502,0.00020451,2]
[370535459,1752059447567,-151.352149,0.00020451,2]
[370535460,1752059447578,-151.0,0.00020451,2]
[370535461,1752059447587,-151.0,0.00020451,2]
[370535462,1752059447597,-151.0,0.00020451,2]
[370535463,1752059447606,-345.833326,0.00020474,2]
[370535464,1752059447615,-716.195754,0.00020506,2]
[370535465,1752059447625,-151.0,0.00020506,2]
[370535466,1752059447639,-151.0,0.00020506,2]
[370535467,1752059447648,-1203.98808523,0.00020521,3]
[370535468,1752059447659,-2228.06,0.00020538,3]
[370535469,1752059447668,-1114.04,0.00020538,3]
[370535470,1752059447680,-557.02,0.00020538,3]
[370535471,1752059447689,-460.0,0.00020547,2]
[370535472,1752059447698,-460.0,0.00020547,2]
[370535473,1752059447709,-460.0,0.00020547,2]
[370535474,1752059447718,-460.0,0.00020547,2]
[370535475,1752059447728,-460.0,0.00020547,2]
[370535476,1752059447738,-460.0,0.00020547,2]
[370535477,1752059447747,-460.0,0.00020547,2]
[370535478,1752059447756,-460.0,0.00020547,2]
[370535479,1752059447766,-460.0,0.00020547,2]
[370535480,1752059447775,-460.0,0.00020547,2]
[370535481,1752059447784,-460.0,0.00020547,2]
[370535482,1752059447794,-460.0,0.00020547,2]
[370535483,1752059447803,-460.0,0.00020547,2]
[370535484,1752059447813,-678.22,0.00020547,2]
[370535485,1752059447822,-491.63,0.00020547,2]
[370535486,1752059447831,-5401.19,0.00020547,2]
[370535487,1752059447840,-460.0,0.00020547,2]
[370535488,1752059447850,-1411.26,0.00020547,2]
[370535489,1752059447859,-3095.11,0.00020547,2]
[370535490,1752059447868,-3619.63,0.00020547,2]
[370535491,1752059447877,-460.0,0.00020547,2]
[370535492,1752059447886,-460.0,0.00020547,2]
[370535493,1752059447896,-1524.87,0.00020547,2]
[370535494,1752059447905,-460.0,0.00020547,2]
[370535495,1752059447914,-460.0,0.00020547,2]
[370535496,1752059447924,-539.5,0.00020547,2]
[370535497,1752059447932,-460.0,0.00020547,2]
[370535499,1752059447941,-460.0,0.00020547,2]
[370535500,1752059447951,-460.0,0.00020547,2]
[370535501,1752059447960,-460.0,0.00020547,2]
[370535503,1752059447969,-460.0,0.00020547,2]
[370535505,1752059447978,-532.09,0.00020547,2]
[370535506,1752059447987,-460.0,0.00020547,2]
[370535507,1752059447996,-460.0,0.00020547,2]
[370535508,1752059448006,-151.0,0.00020547,2]
[370535509,1752059448015,-1514.59,0.00020547,2]
[370535510,1752059448025,-895.22,0.00020547,2]
[370535511,1752059448034,-1214.91,0.00020547,2]
[370535512,1752059448044,-572.58,0.00020547,2]
[370535513,1752059448053,-1749.11,0.00020547,2]
[370535514,1752059448063,-460.0,0.00020547,2]
[370535515,1752059448072,-1032.42,0.00020547,2]
[370535516,1752059448081,-1937.1,0.00020547,2]
[370535517,1752059448090,-460.0,0.00020547,2]
[370535518,1752059448099,-460.0,0.00020547,2]
[370535519,1752059448108,-460.0,0.00020547,2]
[370535520,1752059448118,-460.0,0.00020547,2]
[370535521,1752059448127,-151.0,0.00020547,2]
[370535522,1752059448136,-460.0,0.00020547,2]
[370535523,1752059448145,-2202.77,0.00020547,2]
[370535524,1752059448155,-613.6,0.00020547,2]
[370535525,1752059448164,-567.38996137,0.00020547,2]
[370535526,1752059448173,-460.0,0.00020547,2]
[370535527,1752059448183,-1657.86,0.00020547,2]
[370535528,1752059448192,-460.0,0.00020547,2]
[370535529,1752059448201,-460.0,0.00020547,2]
[370535530,1752059448211,-460.0,0.00020547,2]
[370535531,1752059448220,-188.40409149,0.00020547,2]
[370535532,1752059448229,-198.9,0.00020547,2]
[370535533,1752059448239,-460.0,0.00020547,2]
[370535534,1752059448248,-847.03,0.00020547,2]
[370535535,1752059448258,-735.39,0.00020547,2]
[370535536,1752059448268,-460.0,0.00020547,2]
[370535537,1752059448277,-354.88,0.00020547,2]
[370535538,1752059448288,-537.15,0.00020547,2]
[370535539,1752059448297,-460.0,0.00020547,2]
[370535540,1752059448307,-769.06,0.00020547,2]
[370535541,1752059448317,-460.0,0.00020547,2]
[370535542,1752059448327,-546.9,0.00020547,2]
[370535543,1752059448336,-547.44,0.00020547,2]
[370535544,1752059448345,-460.0,0.00020547,2]
[370535545,1752059448355,-460.0,0.00020547,2]
[370535546,1752059448364,-1233.24,0.00020547,2]
[370535547,1752059448374,-460.0,0.00020547,2]
[370535548,1752059448383,-742.6949969,0.00020561,2]
[370535549,1752059448392,-345.833326,0.00020569,2]
[370535550,1752059448402,-2156.45,0.000206,2]
[370535551,1752059448411,-770.17471178,0.00020616,2]
[370535552,1752059448422,-345.833326,0.00020665,2]
[370535553,1752059448431,-798.67117612,0.00020671,2]
[370535554,1752059448441,-309.74380952,0.00020726,2]
[370535555,1752059448451,-1203.98808523,0.00020728,3]
[370535556,1752059448460,-345.833326,0.00020761,2]
[370535557,1752059448470,-151.0,0.000208,4]
[370535558,1752059448480,-848.55005627,0.00020812,3]
[370535559,1752059448489,-12589.12013084,0.00020812,3]
[370535560,1752059448499,-160.0,0.00020812,3]
[370535561,1752059448509,-272.822506,0.00020812,2]
[370535562,1752059448519,-460.0,0.00020821,2]
[370535563,1752059448529,-460.0,0.00020821,2]
[370535564,1752059448540,-460.0,0.00020821,2]
[370535565,1752059448550,-460.0,0.00020821,2]
[370535566,1752059448560,-460.0,0.00020821,2]
[370535567,1752059448570,-460.0,0.00020821,2]
[370535568,1752059448580,-460.0,0.00020821,2]
[370535569,1752059448590,-460.0,0.00020821,2]
[370535570,1752059448600,-460.0,0.00020821,2]
[370535571,1752059448610,-460.0,0.00020821,2]
[370535572,1752059448620,-460.0,0.00020821,2]
[370535573,1752059448632,-254.17,0.00020821,2]
[370535574,1752059448644,-151.0,0.00020821,2]
[370535575,1752059448654,-460.0,0.00020821,2]
[370535576,1752059448663,-678.22,0.00020821,2]
[370535577,1752059448672,-151.0,0.00020821,2]
[370535578,1752059448681,-491.63,0.00020821,2]
[370535579,1752059448691,-5401.19,0.00020821,2]
[370535580,1752059448700,-460.0,0.00020821,2]
[370535581,1752059448709,-1411.26,0.00020821,2]
[370535582,1752059448718,-3619.63,0.00020821,2]
[370535583,1752059448728,-3095.11,0.00020821,2]
[370535584,1752059448737,-359.08,0.00020821,2]
[370535585,1752059448746,-460.0,0.00020821,2]
[370535586,1752059448756,-1524.87,0.00020821,2]
[370535587,1752059448766,-460.0,0.00020821,2]
[370535588,1752059448775,-460.0,0.00020821,2]
[370535589,1752059448786,-539.5,0.00020821,2]
[370535590,1752059448795,-151.0,0.00020821,2]
[370535591,1752059448805,-460.0,0.00020821,2]
[370535592,1752059448814,-322.435502,0.00020821,2]
[370535593,1752059448824,-460.0,0.00020821,2]
[370535594,1752059448833,-322.435502,0.00020821,2]
[370535595,1752059448842,-460.0,0.00020821,2]
[370535596,1752059448852,-460.0,0.00020821,2]
[370535597,1752059448862,-527.08,0.00020821,2]
[370535598,1752059448871,-532.09,0.00020821,2]
[370535599,1752059448881,-460.0,0.00020821,2]
[370535600,1752059448891,-460.0,0.00020821,2]
[370535601,1752059448900,-1514.59,0.00020821,2]
[370535602,1752059448909,-895.22,0.00020821,2]
[370535603,1752059448919,-1214.91,0.00020821,2]
[370535605,1752059448929,-1749.11,0.00020821,2]
[370535606,1752059448939,-1032.42,0.00020821,2]
[370535608,1752059448948,-1937.1,0.00020821,2]
[370535610,1752059448958,-460.0,0.00020821,2]
[370535612,1752059448967,-460.0,0.00020821,2]
[370535614,1752059448977,-460.0,0.00020821,2]
[370535615,1752059448986,-460.0,0.00020821,2]
[370535616,1752059448996,-460.0,0.00020821,2]
[370535617,1752059449005,-2202.77,0.00020821,2]
[370535618,1752059449015,-613.6,0.00020821,2]
[370535619,1752059449025,-460.0,0.00020821,2]
[370535620,1752059449035,-1657.86,0.00020821,2]
[370535621,1752059449044,-460.0,0.00020821,2]
[370535622,1752059449054,-460.0,0.00020821,2]
[370535623,1752059449063,-460.0,0.00020821,2]
[370535624,1752059449073,-460.0,0.00020821,2]
[370535625,1752059449082,-847.03,0.00020821,2]
[370535626,1752059449092,-735.39,0.00020821,2]
[370535627,1752059449102,-460.0,0.00020821,2]
[370535628,1752059449111,-537.15,0.00020821,2]
[370535629,1752059449121,-460.0,0.00020821,2]
[370535630,1752059449132,-769.06,0.00020821,2]
[370535631,1752059449142,-460.0,0.00020821,2]
[370535632,1752059449152,-546.9,0.00020821,2]
[370535633,1752059449161,-547.44,0.00020821,2]
[370535634,1752059449171,-460.0,0.00020821,2]
[370535635,1752059449180,-460.0,0.00020821,2]
[370535636,1752059449190,-1233.24,0.00020821,2]
[370535637,1752059449200,-460.0,0.00020821,2]
[370535638,1752059449210,-258.533965,0.00020824,4]
[370535639,1752059449219,-692.795,0.00020846,2]
[370535640,1752059449229,-345.833326,0.00020856,2]
[370535641,1752059449239,-1500.0,0.0002087,2]
[370535642,1752059449249,-1332.83814541,0.0002087,2]
[370535643,1752059449258,-500.0,0.0002087,2]
[370535644,1752059449268,-1522.75019543,0.0002087,2]
[370535645,1752059449279,-1500.0,0.0002087,2]
[370535646,1752059449290,-1124.88944406,0.0002087,2]
[370535647,1752059449300,-475.70977243,0.0002087,2]
[370535648,1752059449310,-420.0,0.00020898,2]
[370535649,1752059449320,-1203.98808523,0.00020934,4]
[370535650,1752059449330,-500.0,0.00020938,2]
[370535651,1752059449340,-345.833326,0.00020952,2]
[370535652,1752059449350,-25000.0,0.00020999,2]
[370535653,1752059449360,-228.29306,0.00020999,2]
[370535654,1752059449369,-151.0,0.00020999,2]
[370535655,1752059449380,-151.0,0.00020999,2]
[370535656,1752059449390,-151.0,0.00020999,2]
[370535657,1752059449399,-3000.0,0.00021,2]
[370535658,1752059449409,-151.0,0.00021,2]
[370535659,1752059449419,-3000.0,0.0002101,2]
[370535660,1752059449428,-473172.46483,0.00021019,4]
[370535661,1752059449437,-3000.0,0.0002102,2]
[370535662,1752059449447,-3000.0,0.0002103,2]
[370535663,1752059449456,-3000.0,0.0002104,2]
[370535664,1752059449466,-562.36,0.0002104,2]
[370535665,1752059449475,-345.833326,0.00021048,2]
[370535666,1752059449484,-3000.0,0.0002105,2]
[370535667,1752059449494,-3000.0,0.0002106,2]
[370535668,1752059449503,-151.0,0.0002106,2]
[370535669,1752059449512,-151.0,0.0002106,2]
[370535670,1752059449522,-3000.0,0.0002107,2]
[370535671,1752059449531,-3000.0,0.0002108,2]
[370535672,1752059449540,-151.0,0.0002108,2]
[370535673,1752059449550,-151.0,0.0002108,2]
[370535674,1752059449559,-151.299347,0.0002108,2]
[370535675,1752059449569,-3000.0,0.0002109,2]
[370535676,1752059449579,-460.0,0.00021095,2]
[370535677,1752059449588,-209.274747,0.00021095,2]
[370535678,1752059449597,-151.0,0.00021095,2]
[370535679,1752059449607,-151.0,0.00021095,2]
[370535680,1752059449616,-151.0,0.00021095,2]
[370535681,1752059449625,-460.0,0.00021095,2]
[370535682,1752059449639,-460.0,0.00021095,2]
[370535683,1752059449648,-460.0,0.00021095,2]
[370535684,1752059449657,-460.0,0.00021095,2]
[370535685,1752059449667,-460.0,0.00021095,2]
[370535686,1752059449677,-460.0,0.00021095,2]
[370535687,1752059449687,-460.0,0.00021095,2]
[370535688,1752059449695,-151.0,0.00021095,2]
[370535689,1752059449706,-151.0,0.00021095,2]
[370535690,1752059449813,-240.34477763,0.00021095,2]
[370535691,1752059449833,-460.0,0.00021095,2]
[370535692,1752059449843,-460.0,0.00021095,2]
[370535693,1752059449852,-151.0,0.00021095,2]
[370535694,1752059449861,-151.0,0.00021095,2]
[370535695,1752059449871,-151.0,0.00021095,2]
[370535696,1752059449880,-151.599264,0.00021095,2]
[370535697,1752059449890,-329.42844,0.00021095,2]
[370535698,1752059449899,-329.42844,0.00021095,2]
[370535699,1752059449907,-460.0,0.00021095,2]
[370535700,1752059449917,-678.22,0.00021095,2]
[370535701,1752059449926,-491.63,0.00021095,2]
[370535702,1752059449935,-5401.19,0.00021095,2]
[370535703,1752059449945,-460.0,0.00021095,2]
[370535704,1752059449956,-1411.26,0.00021095,2]
[370535705,1752059449966,-3619.63,0.00021095,2]
[370535706,1752059449975,-3095.11,0.00021095,2]
[370535707,1752059449985,-460.0,0.00021095,2]
[370535708,1752059449994,-1524.87,0.00021095,2]
[370535709,1752059450003,-460.0,0.00021095,2]
[370535710,1752059450012,-460.0,0.00021095,2]
[370535711,1752059450021,-539.5,0.00021095,2]
[370535712,1752059450030,-460.0,0.00021095,2]
[370535713,1752059450040,-460.0,0.00021095,2]
[370535714,1752059450049,-460.0,0.00021095,2]
[370535715,1752059450059,-460.0,0.00021095,2]
[370535716,1752059450069,-532.09,0.00021095,2]
[370535717,1752059450078,-460.0,0.00021095,2]
[370535718,1752059450087,-460.0,0.00021095,2]
[370535719,1752059450096,-1514.59,0.00021095,2]
[370535720,1752059450106,-895.22,0.00021095,2]
[370535721,1752059450115,-1214.91,0.00021095,2]
[370535722,1752059450126,-1749.11,0.00021095,2]
[370535723,1752059450139,-1032.42,0.00021095,2]
[370535724,1752059450149,-1937.1,0.00021095,2]
[370535725,1752059450159,-460.0,0.00021095,2]
[370535726,1752059450168,-460.0,0.00021095,2]
[370535727,1752059450177,-460.0,0.00021095,2]
[370535728,1752059450187,-460.0,0.00021095,2]
[370535729,1752059450196,-460.0,0.00021095,2]
[370535730,1752059450205,-2202.77,0.00021095,2]
[370535731,1752059450215,-613.6,0.00021095,2]
[370535732,1752059450225,-460.0,0.00021095,2]
[370535733,1752059450235,-1657.86,0.00021095,2]
[370535734,1752059450244,-460.0,0.00021095,2]
[370535735,1752059450253,-460.0,0.00021095,2]
[370535736,1752059450262,-348.2,0.00021095,2]
[370535737,1752059450271,-460.0,0.00021095,2]
[370535738,1752059450280,-847.03,0.00021095,2]
[370535739,1752059450290,-735.39,0.00021095,2]
[370535740,1752059450299,-460.0,0.00021095,2]
[370535741,1752059450308,-537.15,0.00021095,2]
[370535742,1752059450318,-460.0,0.00021095,2]
[370535743,1752059450327,-769.06,0.00021095,2]
[370535744,1752059450336,-208.60887039,0.00021095,2]
[370535745,1752059450549,-600.0,0.00019178,2]
[370535746,1752059450561,-46.39,0.00019178,2]
[370535747,1752059450571,-646.39,0.00019452,2]
[370535748,1752059450580,-58.22,0.00020273,2]
[370535749,1752059450797,-500.0,0.00019177,2]
[370535750,1752059450807,-460.0,0.00019178,2]
[370535751,1752059450816,-151.0,0.00019178,2]
[370535752,1752059450828,-151.0,0.00019178,2]
[370535753,1752059450837,-460.0,0.00019178,2]
[370535754,1752059450847,-460.0,0.00019178,2]
[370535755,1752059450856,-460.0,0.00019178,2]
[370535756,1752059450865,-460.0,0.00019452,2]
[370535757,1752059450876,-646.39,0.00019726,2]
[370535758,1752059450886,-646.39,0.0002,2]
[370535759,1752059450896,-401.78,0.00020273,2]
[370535760,1752059450906,-646.39,0.00020273,2]
[370535761,1752059450916,-151.0,0.00020273,2]
[370535762,1752059450926,-151.0,0.00020451,2]
[370535763,1752059450935,-460.0,0.00020547,2]
[370535764,1752059450945,-646.39,0.00020547,2]
[370535765,1752059450954,-460.0,0.00020821,2]
[370535766,1752059450963,-646.39,0.00020821,2]
[370535767,1752059450973,-338.29112961,0.00021095,2]
[370535768,1752059450983,-295.85,0.00021095,2]
[370535769,1752059450992,-547.44,0.00021095,2]
[370535770,1752059451002,-187.85676103,0.00021095,2]
[370535771,1752059451011,-543.65,0.00021095,2]
[370535772,1752059451021,-755.93611649,0.00021095,2]
[370535773,1752059451032,-477.30388351,0.00021095,2]
[370535774,1752059451042,-460.0,0.00021095,2]
[370535775,1752059451051,-460.0,0.00021095,2]
[370535776,1752059451061,-646.39,0.00021095,2]
[370535777,1752059451071,-130.21318056,0.000211,2]
[370535778,1752059451082,-1146.814,0.000211,2]
[370535779,1752059451258,-460.0,0.00019178,2]
[370535780,1752059451267,-460.0,0.00019452,2]
[370535781,1752059451276,-460.0,0.00019452,2]
[370535782,1752059451285,-375.1883259,0.00019452,2]
[370535783,1752059451294,-460.0,0.00019726,2]
[370535784,1752059451304,-133.51891379,0.0002,2]
[370535786,1752059800629,197.4058254,0.00018177,2]
[370535791,1752060189303,187.1827764,0.00018298,2]
[370535800,1752060525338,199.191471,0.00013699,2]
[370535801,1752060526226,1393.39396921,0.00015,2]
[370535802,1752060526252,5512.53599357,0.00015,2]
[370535804,1752060528542,3487.46400643,0.0001,2]
[370535805,1752060528566,9000.0,0.0001,2]
[370535806,1752060528590,4302.70936185,0.0001,2]
[370535913,1752060633237,-6493.76568416,0.000185,2]
[370535916,1752060633259,-145.30749735,0.000185,2]
[370535918,1752060633268,-155.96317375,0.000189,2]
[370535920,1752060633279,-9155.35787155,0.00018976,2]
[370535921,1752060633288,-210.94725637,0.00019068,2]
[370535922,1752060633297,-210.94725635,0.00019073,2]
[370535924,1752060633309,-300.0,0.00019074,2]
[370535925,1752060633318,-300.0,0.00019074,2]
[370535926,1752060633329,-300.0,0.00019074,2]
[370535927,1752060633338,-210.94725635,0.00019078,2]
[370535928,1752060633347,-50000.0,0.00019168,2]
[370535929,1752060633357,-907.82,0.00019168,3]
[370535930,1752060633367,-453.91,0.00019168,3]
[370535931,1752060633377,-500.0,0.00019177,2]
[370535932,1752060633387,-467.1015672,0.00019177,2]
[370535933,1752060633396,-500.0,0.00019177,2]
[370535934,1752060633405,-350.74100074,0.00019177,2]
[370535935,1752060633415,-500.0,0.00019177,2]
[370535936,1752060633425,-571.29892069,0.00019177,2]
[370535937,1752060633435,-499.99999999,0.00019177,2]
[370535938,1752060633445,-460.0,0.00019178,2]
[370535939,1752060633455,-460.0,0.00019178,2]
[370535940,1752060633465,-460.0,0.00019178,2]
[370535941,1752060633475,-460.0,0.00019178,2]
[370535942,1752060633485,-460.0,0.00019178,2]
[370535943,1752060633495,-460.0,0.00019178,2]
[370535944,1752060633505,-460.0,0.00019178,2]
[370535945,1752060633514,-460.0,0.00019178,2]
[370535946,1752060633524,-460.0,0.00019178,2]
[370535947,1752060633534,-460.0,0.00019178,2]
[370535948,1752060633543,-460.0,0.00019178,2]